[Event "Titled Tuesday Blitz March 15 Late 2022"]
[White "Gatterer, Florian"]
[Black "Swicarz, Maciej"]
[WhiteFideId "811688"]
[BlackFideId "1113585"]
[WhiteElo "2218"]
[BlackElo "2057"]
[Result "0-1"]
[Round "08"]
[TimeControl "180+1"]
[Date "2022.03.16"]
[WhiteClock "0:00:25"]
[BlackClock "0:01:34"]

1. Nf3 {[%clk 0:02:59]}  c5 {[%clk 0:02:58]} 2. c4 {[%clk 0:02:57]}  Nc6 {[%clk 0:02:55]} 3. Nc3 {[%clk 0:02:57]}  g6 {[%clk 0:02:55]} 4. e3 {[%clk 0:02:56]}  Nf6 {[%clk 0:02:52]} 5. d4 {[%clk 0:02:55]}  cxd4 {[%clk 0:02:52]} 6. exd4 {[%clk 0:02:55]}  d5 {[%clk 0:02:52]} 7. cxd5 {[%clk 0:02:54]}  Nxd5 {[%clk 0:02:52]} 8. Qb3 {[%clk 0:02:52]}  Nxc3 {[%clk 0:02:50]} 9. Bc4 {[%clk 0:02:49]}  e6 {[%clk 0:02:45]} 10. bxc3 {[%clk 0:02:45]}  Na5 {[%clk 0:02:39]} 11. Bb5+ {[%clk 0:02:36]}  Bd7 {[%clk 0:02:37]} 12. Qa4 {[%clk 0:02:36]}  Nc6 {[%clk 0:02:28]} 13. Bg5 {[%clk 0:02:10]}  Qa5 {[%clk 0:02:22]} 14. Qxa5 {[%clk 0:02:04]}  Nxa5 {[%clk 0:02:23]} 15. Bxd7+ {[%clk 0:02:04]}  Kxd7 {[%clk 0:02:23]} 16. Ne5+ {[%clk 0:02:03]}  Ke8 {[%clk 0:02:21]} 17. Bf6 {[%clk 0:01:47]}  Rg8 {[%clk 0:02:21]} 18. Kd2 {[%clk 0:01:47]}  Be7 {[%clk 0:02:15]} 19. Bxe7 {[%clk 0:01:38]}  Kxe7 {[%clk 0:02:16]} 20. Rab1 {[%clk 0:01:38]}  Rac8 {[%clk 0:02:14]} 21. Rb5 {[%clk 0:01:17]}  b6 {[%clk 0:02:13]} 22. Rhb1 {[%clk 0:01:06]}  Rc7 {[%clk 0:02:13]} 23. Rxa5 {[%clk 0:00:37]}  bxa5 {[%clk 0:02:12]} 24. Nd3 {[%clk 0:00:37]}  Rgc8 {[%clk 0:02:10]} 25. Nc5 {[%clk 0:00:37]}  Kd6 {[%clk 0:01:59]} 26. Kd3 {[%clk 0:00:33]}  e5 {[%clk 0:01:56]} 27. Rb5 {[%clk 0:00:30]}  exd4 {[%clk 0:01:53]} 28. cxd4 {[%clk 0:00:30]}  Rd8 {[%clk 0:01:34]} 29. Rxa5 {[%clk 0:00:25]}  Kc6 {[%clk 0:01:34]} 0-1


[Site "https://www.chess.com"]

[Event "Titled Tuesday Blitz March 15 Late 2022"]
[White "Gledura, Benjamin"]
[Black "Yoo, Christopher Woojin"]
[WhiteFideId "712779"]
[BlackFideId "30909694"]
[WhiteElo "2326"]
[BlackElo "2105"]
[Result "0-1"]
[Round "08"]
[TimeControl "180+1"]
[Date "2022.03.15"]
[WhiteClock "0:02:15"]
[BlackClock "0:01:19"]

1. e4 {[%clk 0:03:00]}  c5 {[%clk 0:02:58]} 2. Nc3 {[%clk 0:02:58]}  e6 {[%clk 0:02:56]} 3. Nf3 {[%clk 0:02:56]}  Nc6 {[%clk 0:02:55]} 4. d4 {[%clk 0:02:56]}  cxd4 {[%clk 0:02:55]} 5. Nxd4 {[%clk 0:02:57]}  Nf6 {[%clk 0:02:55]} 6. Nxc6 {[%clk 0:02:56]}  bxc6 {[%clk 0:02:56]} 7. e5 {[%clk 0:02:56]}  Nd5 {[%clk 0:02:56]} 8. Ne4 {[%clk 0:02:56]}  Qc7 {[%clk 0:02:57]} 9. f4 {[%clk 0:02:56]}  Rb8 {[%clk 0:02:57]} 10. c4 {[%clk 0:02:55]}  Bb4+ {[%clk 0:02:57]} 11. Ke2 {[%clk 0:02:54]}  O-O {[%clk 0:02:57]} 12. cxd5 {[%clk 0:02:51]}  cxd5 {[%clk 0:02:58]} 13. Nd6 {[%clk 0:02:46]}  f6 {[%clk 0:02:56]} 14. Nxc8 {[%clk 0:02:41]}  fxe5 {[%clk 0:02:51]} 15. g3 {[%clk 0:02:39]}  Rbxc8 {[%clk 0:02:40]} 16. Qb3 {[%clk 0:02:34]}  Bd6 {[%clk 0:02:13]} 17. Bd2 {[%clk 0:02:26]}  Rb8 {[%clk 0:01:51]} 18. Rc1 {[%clk 0:02:25]}  Rxb3 {[%clk 0:01:37]} 19. Rxc7 {[%clk 0:02:25]}  Rxb2 {[%clk 0:01:38]} 20. Rc3 {[%clk 0:02:25]}  Bb4 {[%clk 0:01:30]} 21. Rb3 {[%clk 0:02:15]}  Rxd2+ {[%clk 0:01:29]} 22. Ke3 {[%clk 0:02:16]}  Rd4 {[%clk 0:01:22]} 23. fxe5 {[%clk 0:02:16]}  Re4+ {[%clk 0:01:18]} 24. Kd3 {[%clk 0:02:16]}  Rf3+ {[%clk 0:01:18]} 25. Kc2 {[%clk 0:02:16]}  Rf2+ {[%clk 0:01:19]} 26. Kd3 {[%clk 0:02:15]}  Rd2# {[%clk 0:01:19]} 0-1


[Site "https://www.chess.com"]

[Event "Titled Tuesday Blitz March 15 Late 2022"]
[White "Hakobyan, Aram"]
[Black "Rustemov, Alexander"]
[WhiteFideId "13306677"]
[BlackFideId "4119002"]
[WhiteElo "2557"]
[BlackElo "2750"]
[Result "0-1"]
[Round "08"]
[TimeControl "180+1"]
[Date "2022.03.15"]
[WhiteClock "0:00:05"]
[BlackClock "0:00:18"]

1. e4 {[%clk 0:03:00]}  e6 {[%clk 0:02:59]} 2. Qe2 {[%clk 0:03:00]}  c5 {[%clk 0:02:59]} 3. Nf3 {[%clk 0:03:00]}  Nc6 {[%clk 0:02:59]} 4. g3 {[%clk 0:03:01]}  g6 {[%clk 0:02:59]} 5. c3 {[%clk 0:02:59]}  Bg7 {[%clk 0:02:59]} 6. h4 {[%clk 0:02:58]}  h6 {[%clk 0:02:59]} 7. Na3 {[%clk 0:02:58]}  Nge7 {[%clk 0:02:58]} 8. Nc4 {[%clk 0:02:57]}  d5 {[%clk 0:02:58]} 9. Na3 {[%clk 0:02:56]}  d4 {[%clk 0:02:49]} 10. Bg2 {[%clk 0:02:54]}  e5 {[%clk 0:02:50]} 11. h5 {[%clk 0:02:50]}  g5 {[%clk 0:02:45]} 12. d3 {[%clk 0:02:50]}  Bg4 {[%clk 0:02:37]} 13. Qc2 {[%clk 0:02:41]}  Qd7 {[%clk 0:02:34]} 14. Nc4 {[%clk 0:02:40]}  Rd8 {[%clk 0:02:16]} 15. Nfd2 {[%clk 0:02:23]}  dxc3 {[%clk 0:02:13]} 16. bxc3 {[%clk 0:02:24]}  Qxd3 {[%clk 0:02:11]} 17. Qxd3 {[%clk 0:02:23]}  Rxd3 {[%clk 0:02:12]} 18. Bb2 {[%clk 0:02:24]}  O-O {[%clk 0:02:10]} 19. Bf1 {[%clk 0:02:18]}  Rd7 {[%clk 0:02:10]} 20. Ne3 {[%clk 0:02:19]}  Be6 {[%clk 0:02:07]} 21. c4 {[%clk 0:02:14]}  Nd4 {[%clk 0:02:07]} 22. Rc1 {[%clk 0:02:15]}  f5 {[%clk 0:02:03]} 23. exf5 {[%clk 0:02:09]}  Nexf5 {[%clk 0:02:03]} 24. Nd5 {[%clk 0:02:10]}  b5 {[%clk 0:01:49]} 25. Ne4 {[%clk 0:02:05]}  Bxd5 {[%clk 0:01:35]} 26. cxd5 {[%clk 0:02:03]}  c4 {[%clk 0:01:35]} 27. Ba3 {[%clk 0:01:56]}  Rfd8 {[%clk 0:01:33]} 28. d6 {[%clk 0:01:52]}  Nf3+ {[%clk 0:01:01]} 29. Ke2 {[%clk 0:01:47]}  N3d4+ {[%clk 0:01:01]} 30. Ke1 {[%clk 0:01:46]}  g4 {[%clk 0:00:56]} 31. Bg2 {[%clk 0:01:41]}  Kf7 {[%clk 0:00:55]} 32. Nc5 {[%clk 0:01:38]}  Rxd6 {[%clk 0:00:54]} 33. Nb7 {[%clk 0:01:39]}  Rd5 {[%clk 0:00:44]} 34. Nxd8+ {[%clk 0:01:33]}  Rxd8 {[%clk 0:00:44]} 35. Be4 {[%clk 0:01:29]}  Nf3+ {[%clk 0:00:43]} 36. Bxf3 {[%clk 0:01:26]}  gxf3 {[%clk 0:00:43]} 37. Rd1 {[%clk 0:01:26]}  Nd4 {[%clk 0:00:42]} 38. Kf1 {[%clk 0:01:18]}  a5 {[%clk 0:00:42]} 39. Rh4 {[%clk 0:01:14]}  b4 {[%clk 0:00:41]} 40. Bc1 {[%clk 0:01:15]}  c3 {[%clk 0:00:42]} 41. Rd3 {[%clk 0:01:14]}  Rc8 {[%clk 0:00:35]} 42. Re4 {[%clk 0:01:02]}  a4 {[%clk 0:00:35]} 43. Ree3 {[%clk 0:00:58]}  c2 {[%clk 0:00:30]} 44. g4 {[%clk 0:00:50]}  b3 {[%clk 0:00:29]} 45. axb3 {[%clk 0:00:50]}  Nxb3 {[%clk 0:00:28]} 46. Rxf3+ {[%clk 0:00:47]}  Ke6 {[%clk 0:00:28]} 47. Rc3 {[%clk 0:00:17]}  Rxc3 {[%clk 0:00:25]} 48. Rxc3 {[%clk 0:00:18]}  Nxc1 {[%clk 0:00:25]} 49. Rxc2 {[%clk 0:00:19]}  Nd3 {[%clk 0:00:23]} 50. Rc6+ {[%clk 0:00:19]}  Kd5 {[%clk 0:00:22]} 51. Ra6 {[%clk 0:00:20]}  Nc5 {[%clk 0:00:22]} 52. Ra7 {[%clk 0:00:16]}  Bf6 {[%clk 0:00:22]} 53. Kg2 {[%clk 0:00:15]}  Bg5 {[%clk 0:00:22]} 54. f3 {[%clk 0:00:14]}  Kc4 {[%clk 0:00:22]} 55. Kf2 {[%clk 0:00:11]}  Kb4 {[%clk 0:00:21]} 56. Ke2 {[%clk 0:00:11]}  a3 {[%clk 0:00:22]} 57. Kd1 {[%clk 0:00:12]}  Kb3 {[%clk 0:00:18]} 58. Ra5 {[%clk 0:00:04]}  a2 {[%clk 0:00:17]} 59. Ke2 {[%clk 0:00:04]}  Na4 {[%clk 0:00:17]} 60. Rb5+ {[%clk 0:00:05]}  Kc4 {[%clk 0:00:17]} 61. Rb1 {[%clk 0:00:05]}  Nc3+ {[%clk 0:00:18]} 0-1


[Site "https://www.chess.com"]

[Event "Titled Tuesday Blitz March 15 Late 2022"]
[White "Hambleton, Aman"]
[Black "Cervantes Landeiro, Thalia"]
[WhiteFideId "2606577"]
[BlackFideId "3520498"]
[WhiteElo "2552"]
[BlackElo "2021"]
[Result "0-1"]
[Round "08"]
[TimeControl "180+1"]
[Date "2022.03.16"]
[WhiteClock "0:00:01"]
[BlackClock "0:00:16"]

1. e4 {[%clk 0:02:59]}  e5 {[%clk 0:02:58]} 2. Nf3 {[%clk 0:02:59]}  Nc6 {[%clk 0:02:58]} 3. Bc4 {[%clk 0:02:59]}  Bc5 {[%clk 0:02:57]} 4. Bxf7+ {[%clk 0:02:58]}  Kxf7 {[%clk 0:02:55]} 5. Nxe5+ {[%clk 0:02:58]}  Nxe5 {[%clk 0:02:51]} 6. Qh5+ {[%clk 0:02:58]}  Ng6 {[%clk 0:02:39]} 7. Qd5+ {[%clk 0:02:54]}  Kf8 {[%clk 0:02:34]} 8. Qxc5+ {[%clk 0:02:54]}  d6 {[%clk 0:02:33]} 9. Qe3 {[%clk 0:02:54]}  Nf6 {[%clk 0:02:33]} 10. Nc3 {[%clk 0:02:54]}  Kf7 {[%clk 0:02:27]} 11. O-O {[%clk 0:02:40]}  Re8 {[%clk 0:02:26]} 12. d3 {[%clk 0:02:22]}  Kg8 {[%clk 0:02:24]} 13. Qg3 {[%clk 0:01:56]}  Be6 {[%clk 0:02:08]} 14. f4 {[%clk 0:01:48]}  Bf7 {[%clk 0:02:03]} 15. f5 {[%clk 0:01:14]}  Ne5 {[%clk 0:02:00]} 16. Bg5 {[%clk 0:01:14]}  Kh8 {[%clk 0:01:44]} 17. Rae1 {[%clk 0:01:07]}  c5 {[%clk 0:01:40]} 18. Qh4 {[%clk 0:00:56]}  Qe7 {[%clk 0:01:24]} 19. Re3 {[%clk 0:00:38]}  Bg8 {[%clk 0:01:14]} 20. Ne2 {[%clk 0:00:24]}  h6 {[%clk 0:01:06]} 21. Rg3 {[%clk 0:00:15]}  Bh7 {[%clk 0:01:03]} 22. Bc1 {[%clk 0:00:10]}  Qf7 {[%clk 0:00:43]} 23. Nf4 {[%clk 0:00:03]}  d5 {[%clk 0:00:40]} 24. Ne6 {[%clk 0:00:03]}  Rg8 {[%clk 0:00:37]} 25. Nxg7 {[%clk 0:00:02]}  Rxg7 {[%clk 0:00:33]} 26. Rxg7 {[%clk 0:00:02]}  Qxg7 {[%clk 0:00:31]} 27. Bxh6 {[%clk 0:00:03]}  Qf7 {[%clk 0:00:31]} 28. Bf4 {[%clk 0:00:03]}  Re8 {[%clk 0:00:25]} 29. Bg5 {[%clk 0:00:03]}  Ned7 {[%clk 0:00:22]} 30. Re1 {[%clk 0:00:02]}  dxe4 {[%clk 0:00:21]} 31. dxe4 {[%clk 0:00:02]}  Nxe4 {[%clk 0:00:19]} 32. Bf4 {[%clk 0:00:02]}  Nef6 {[%clk 0:00:18]} 33. Rxe8+ {[%clk 0:00:01]}  Qxe8 {[%clk 0:00:18]} 34. Bg5 {[%clk 0:00:01]}  Qe5 {[%clk 0:00:17]} 35. Qf2 {[%clk 0:00:01]}  Qxf5 {[%clk 0:00:17]} 36. Qh4 {[%clk 0:00:01]}  Qe5 {[%clk 0:00:16]} 37. h3 {[%clk 0:00:01]}  Qd4+ {[%clk 0:00:16]} 0-1


[Site "https://www.chess.com"]

[Event "Titled Tuesday Blitz March 15 Late 2022"]
[White "Janaszak, Dawid"]
[Black "Donchenko, Alexander"]
[WhiteFideId "1119206"]
[BlackFideId "24603295"]
[WhiteElo "2199"]
[BlackElo "2539"]
[Result "1-0"]
[Round "08"]
[TimeControl "180+1"]
[Date "2022.03.16"]
[WhiteClock "0:00:20"]
[BlackClock "0:01:27"]

1. e4 {[%clk 0:02:59]}  c6 {[%clk 0:02:59]} 2. d4 {[%clk 0:02:58]}  d5 {[%clk 0:03:00]} 3. exd5 {[%clk 0:02:59]}  cxd5 {[%clk 0:03:01]} 4. Bd3 {[%clk 0:02:59]}  Nf6 {[%clk 0:03:01]} 5. c3 {[%clk 0:02:59]}  Bg4 {[%clk 0:03:00]} 6. Qb3 {[%clk 0:02:59]}  Qd7 {[%clk 0:02:59]} 7. Bf4 {[%clk 0:02:53]}  Nc6 {[%clk 0:02:59]} 8. Nd2 {[%clk 0:02:53]}  e6 {[%clk 0:02:59]} 9. Ngf3 {[%clk 0:02:53]}  Bd6 {[%clk 0:02:59]} 10. Bxd6 {[%clk 0:02:53]}  Qxd6 {[%clk 0:02:59]} 11. O-O {[%clk 0:02:54]}  O-O {[%clk 0:02:58]} 12. Rae1 {[%clk 0:02:54]}  Rab8 {[%clk 0:02:57]} 13. Ne5 {[%clk 0:02:45]}  Bh5 {[%clk 0:02:57]} 14. f4 {[%clk 0:02:38]}  b5 {[%clk 0:02:55]} 15. a3 {[%clk 0:02:15]}  Bg6 {[%clk 0:02:53]} 16. Bxg6 {[%clk 0:02:04]}  hxg6 {[%clk 0:02:54]} 17. Qc2 {[%clk 0:01:48]}  a5 {[%clk 0:02:52]} 18. Nb3 {[%clk 0:01:45]}  Ra8 {[%clk 0:02:41]} 19. Nc5 {[%clk 0:01:41]}  b4 {[%clk 0:02:34]} 20. a4 {[%clk 0:01:41]}  Rab8 {[%clk 0:02:22]} 21. Rf3 {[%clk 0:01:39]}  bxc3 {[%clk 0:02:21]} 22. bxc3 {[%clk 0:01:40]}  Ne7 {[%clk 0:02:08]} 23. Rh3 {[%clk 0:01:34]}  Rfc8 {[%clk 0:02:04]} 24. Rh8+ {[%clk 0:01:33]}  Kxh8 {[%clk 0:02:01]} 25. Nxf7+ {[%clk 0:01:33]}  Kg8 {[%clk 0:02:00]} 26. Nxd6 {[%clk 0:01:34]}  Rc6 {[%clk 0:02:01]} 27. Rxe6 {[%clk 0:01:29]}  Nf5 {[%clk 0:01:58]} 28. Nxf5 {[%clk 0:01:27]}  Rxe6 {[%clk 0:01:58]} 29. Nxe6 {[%clk 0:01:26]}  gxf5 {[%clk 0:01:58]} 30. Qxf5 {[%clk 0:01:21]}  Ne4 {[%clk 0:01:58]} 31. g3 {[%clk 0:00:54]}  Rb1+ {[%clk 0:01:57]} 32. Kg2 {[%clk 0:00:54]}  Rb2+ {[%clk 0:01:57]} 33. Kh3 {[%clk 0:00:51]}  Nf6 {[%clk 0:01:53]} 34. Ng5 {[%clk 0:00:45]}  Rb8 {[%clk 0:01:49]} 35. Qe6+ {[%clk 0:00:42]}  Kh8 {[%clk 0:01:49]} 36. g4 {[%clk 0:00:34]}  Re8 {[%clk 0:01:46]} 37. Qc6 {[%clk 0:00:28]}  Re3+ {[%clk 0:01:45]} 38. Kg2 {[%clk 0:00:28]}  Re2+ {[%clk 0:01:42]} 39. Kf1 {[%clk 0:00:27]}  Re8 {[%clk 0:01:42]} 40. h3 {[%clk 0:00:27]}  Rb8 {[%clk 0:01:40]} 41. Nf7+ {[%clk 0:00:21]}  Kh7 {[%clk 0:01:40]} 42. Ne5 {[%clk 0:00:20]}  Rb1+ {[%clk 0:01:34]} 43. Ke2 {[%clk 0:00:20]}  Rb2+ {[%clk 0:01:34]} 44. Kd1 {[%clk 0:00:20]}  Rf2 {[%clk 0:01:26]} 45. g5 {[%clk 0:00:19]}  Ne4 {[%clk 0:01:26]} 46. Qg6+ {[%clk 0:00:19]}  Kg8 {[%clk 0:01:26]} 47. Qe8+ {[%clk 0:00:19]}  Kh7 {[%clk 0:01:26]} 48. g6+ {[%clk 0:00:20]}  Kh6 {[%clk 0:01:27]} 49. Qh8# {[%clk 0:00:20]} 1-0


[Site "https://www.chess.com"]

[Event "Titled Tuesday Blitz March 15 Late 2022"]
[White "Janturin, Artur"]
[Black "Taichman, Ori"]
[WhiteFideId "4130022"]
[BlackFideId "2804069"]
[WhiteElo "2376"]
[BlackElo "2227"]
[Result "0-1"]
[Round "08"]
[TimeControl "180+1"]
[Date "2022.03.16"]
[WhiteClock "0:00:14"]
[BlackClock "0:00:22"]

1. b3 {[%clk 0:03:00]}  Nf6 {[%clk 0:02:40]} 2. Bb2 {[%clk 0:03:01]}  g6 {[%clk 0:02:40]} 3. Bxf6 {[%clk 0:03:01]}  exf6 {[%clk 0:02:41]} 4. c4 {[%clk 0:03:02]}  Bg7 {[%clk 0:02:42]} 5. Nc3 {[%clk 0:03:02]}  b6 {[%clk 0:02:41]} 6. g3 {[%clk 0:02:32]}  Bb7 {[%clk 0:02:40]} 7. Nd5 {[%clk 0:02:32]}  f5 {[%clk 0:02:28]} 8. Rc1 {[%clk 0:02:23]}  c6 {[%clk 0:02:28]} 9. Nc3 {[%clk 0:02:23]}  c5 {[%clk 0:02:26]} 10. Nd5 {[%clk 0:02:23]}  Bxd5 {[%clk 0:02:26]} 11. cxd5 {[%clk 0:02:23]}  d6 {[%clk 0:02:16]} 12. Bg2 {[%clk 0:02:23]}  O-O {[%clk 0:02:15]} 13. e3 {[%clk 0:02:21]}  b5 {[%clk 0:02:13]} 14. Ne2 {[%clk 0:02:20]}  a5 {[%clk 0:02:07]} 15. O-O {[%clk 0:02:10]}  a4 {[%clk 0:02:07]} 16. d4 {[%clk 0:02:09]}  Nd7 {[%clk 0:02:03]} 17. dxc5 {[%clk 0:02:02]}  Nxc5 {[%clk 0:02:03]} 18. Nd4 {[%clk 0:01:51]}  axb3 {[%clk 0:01:57]} 19. axb3 {[%clk 0:01:49]}  Bxd4 {[%clk 0:01:54]} 20. exd4 {[%clk 0:01:49]}  Ne4 {[%clk 0:01:53]} 21. Rc6 {[%clk 0:01:25]}  Ra2 {[%clk 0:01:46]} 22. Bxe4 {[%clk 0:01:17]}  fxe4 {[%clk 0:01:46]} 23. Qg4 {[%clk 0:01:17]}  Re8 {[%clk 0:01:38]} 24. Qf4 {[%clk 0:01:14]}  Rb2 {[%clk 0:01:21]} 25. Rxd6 {[%clk 0:01:04]}  Qa5 {[%clk 0:00:56]} 26. Rd7 {[%clk 0:00:54]}  Rf8 {[%clk 0:00:55]} 27. Rc1 {[%clk 0:00:52]}  Qd2 {[%clk 0:00:43]} 28. Qxd2 {[%clk 0:00:41]}  Rxd2 {[%clk 0:00:44]} 29. Rc5 {[%clk 0:00:38]}  h5 {[%clk 0:00:24]} 30. Rxb5 {[%clk 0:00:32]}  e3 {[%clk 0:00:24]} 31. Rdb7 {[%clk 0:00:14]}  e2 {[%clk 0:00:22]} 0-1


[Site "https://www.chess.com"]

[Event "Titled Tuesday Blitz March 15 Late 2022"]
[White "Jarocka, Liwia"]
[Black "Estrada Nieto, Julian"]
[WhiteFideId "21807558"]
[BlackFideId "5101018"]
[WhiteElo "1896"]
[BlackElo "2246"]
[Result "1/2-1/2"]
[Round "08"]
[TimeControl "180+1"]
[Date "2022.03.16"]
[WhiteClock "0:01:02"]
[BlackClock "0:01:05"]

1. Nf3 {[%clk 0:03:00]}  d5 {[%clk 0:02:58]} 2. b3 {[%clk 0:02:59]}  Nf6 {[%clk 0:02:57]} 3. Bb2 {[%clk 0:03:00]}  Bg4 {[%clk 0:02:57]} 4. Ne5 {[%clk 0:02:59]}  Bf5 {[%clk 0:02:56]} 5. d4 {[%clk 0:02:57]}  Nbd7 {[%clk 0:02:55]} 6. e3 {[%clk 0:02:56]}  e6 {[%clk 0:02:55]} 7. Bd3 {[%clk 0:02:56]}  Bd6 {[%clk 0:02:54]} 8. O-O {[%clk 0:02:55]}  O-O {[%clk 0:02:53]} 9. c4 {[%clk 0:02:54]}  c6 {[%clk 0:02:53]} 10. Nxd7 {[%clk 0:02:54]}  Qxd7 {[%clk 0:02:51]} 11. Nc3 {[%clk 0:02:48]}  Qe7 {[%clk 0:02:49]} 12. Qc2 {[%clk 0:02:46]}  Bxd3 {[%clk 0:02:48]} 13. Qxd3 {[%clk 0:02:47]}  Ba3 {[%clk 0:02:48]} 14. Bxa3 {[%clk 0:02:45]}  Qxa3 {[%clk 0:02:47]} 15. e4 {[%clk 0:02:46]}  dxe4 {[%clk 0:02:45]} 16. Nxe4 {[%clk 0:02:45]}  Nxe4 {[%clk 0:02:45]} 17. Qxe4 {[%clk 0:02:46]}  Rfd8 {[%clk 0:02:42]} 18. Rfd1 {[%clk 0:02:45]}  Qb2 {[%clk 0:02:38]} 19. Qe3 {[%clk 0:02:31]}  Rd7 {[%clk 0:02:36]} 20. Rab1 {[%clk 0:02:02]}  Qxa2 {[%clk 0:02:30]} 21. h4 {[%clk 0:02:02]}  a6 {[%clk 0:02:17]} 22. h5 {[%clk 0:02:01]}  h6 {[%clk 0:02:17]} 23. Qc3 {[%clk 0:01:53]}  Qe2 {[%clk 0:02:09]} 24. Qh3 {[%clk 0:01:42]}  Qe4 {[%clk 0:02:00]} 25. Re1 {[%clk 0:01:31]}  Qxd4 {[%clk 0:01:51]} 26. Rbd1 {[%clk 0:01:27]}  Qxd1 {[%clk 0:01:50]} 27. Rxd1 {[%clk 0:01:28]}  Rxd1+ {[%clk 0:01:50]} 28. Kh2 {[%clk 0:01:29]}  Rad8 {[%clk 0:01:47]} 29. Qg3 {[%clk 0:01:22]}  Kh7 {[%clk 0:01:27]} 30. Qc7 {[%clk 0:01:14]}  R8d7 {[%clk 0:01:27]} 31. Qb6 {[%clk 0:01:14]}  e5 {[%clk 0:01:17]} 32. Qc5 {[%clk 0:01:11]}  f6 {[%clk 0:01:16]} 33. Qe3 {[%clk 0:01:04]}  R7d4 {[%clk 0:01:10]} 34. Qg3 {[%clk 0:01:01]}  R1d3 {[%clk 0:01:07]} 35. Qg6+ {[%clk 0:01:00]}  Kh8 {[%clk 0:01:04]} 36. Qe8+ {[%clk 0:00:59]}  Kh7 {[%clk 0:01:05]} 37. Qg6+ {[%clk 0:01:00]}  Kg8 {[%clk 0:01:05]} 38. Qe8+ {[%clk 0:01:01]}  Kh7 {[%clk 0:01:05]} 39. Qg6+ {[%clk 0:01:02]} 1/2-1/2


[Site "https://www.chess.com"]

[Event "Titled Tuesday Blitz March 15 Late 2022"]
[White "Kokoszczynski, Jan"]
[Black "Zaksaite, Salomeja"]
[WhiteFideId "1174460"]
[BlackFideId "12801496"]
[WhiteElo "2163"]
[BlackElo "1953"]
[Result "1-0"]
[Round "08"]
[TimeControl "180+1"]
[Date "2022.03.16"]
[WhiteClock "0:00:34"]
[BlackClock "0:00:01"]

1. e4 {[%clk 0:03:00]}  c5 {[%clk 0:02:51]} 2. Nf3 {[%clk 0:03:00]}  e6 {[%clk 0:02:49]} 3. g3 {[%clk 0:02:59]}  Nf6 {[%clk 0:02:46]} 4. Qe2 {[%clk 0:02:58]}  Nc6 {[%clk 0:02:44]} 5. Bg2 {[%clk 0:02:56]}  d6 {[%clk 0:02:45]} 6. O-O {[%clk 0:02:55]}  Be7 {[%clk 0:02:45]} 7. c3 {[%clk 0:02:56]}  O-O {[%clk 0:02:42]} 8. d4 {[%clk 0:02:56]}  cxd4 {[%clk 0:02:42]} 9. cxd4 {[%clk 0:02:57]}  Bd7 {[%clk 0:02:39]} 10. Nc3 {[%clk 0:02:56]}  Rc8 {[%clk 0:02:38]} 11. Rd1 {[%clk 0:02:56]}  a6 {[%clk 0:02:37]} 12. e5 {[%clk 0:02:25]}  Nd5 {[%clk 0:02:35]} 13. Nxd5 {[%clk 0:02:21]}  exd5 {[%clk 0:02:35]} 14. Bf4 {[%clk 0:02:21]}  Be6 {[%clk 0:02:23]} 15. Rac1 {[%clk 0:02:01]}  dxe5 {[%clk 0:02:16]} 16. Nxe5 {[%clk 0:02:01]}  Qa5 {[%clk 0:02:14]} 17. a3 {[%clk 0:01:57]}  Qb6 {[%clk 0:02:00]} 18. Qd2 {[%clk 0:01:48]}  Nxe5 {[%clk 0:01:53]} 19. Bxe5 {[%clk 0:01:46]}  h6 {[%clk 0:01:43]} 20. h4 {[%clk 0:01:39]}  Bg4 {[%clk 0:01:39]} 21. Re1 {[%clk 0:01:35]}  Be6 {[%clk 0:01:30]} 22. b4 {[%clk 0:01:29]}  Qb5 {[%clk 0:01:20]} 23. Rc5 {[%clk 0:01:28]}  Bxc5 {[%clk 0:01:19]} 24. dxc5 {[%clk 0:01:29]}  Rfe8 {[%clk 0:00:52]} 25. Qd4 {[%clk 0:01:00]}  Qc4 {[%clk 0:00:25]} 26. Qxc4 {[%clk 0:00:58]}  dxc4 {[%clk 0:00:24]} 27. Bxb7 {[%clk 0:00:59]}  Rcd8 {[%clk 0:00:16]} 28. Bxa6 {[%clk 0:00:47]}  Bc8 {[%clk 0:00:07]} 29. Bxc4 {[%clk 0:00:36]}  Kh7 {[%clk 0:00:01]} 30. Bxf7 {[%clk 0:00:34]}  Re7 {[%clk 0:00:01]} 31. Bc4 {[%clk 0:00:34]}  Rde8 {[%clk 0:00:01]} 32. f4 {[%clk 0:00:34]} 1-0


[Site "https://www.chess.com"]

[Event "Titled Tuesday Blitz March 15 Late 2022"]
[White "Krasteva, Beloslava"]
[Black "Petre, Nad-Titus"]
[WhiteFideId "2922029"]
[BlackFideId "1204165"]
[WhiteElo "1689"]
[BlackElo "2354"]
[Result "0-1"]
[Round "08"]
[TimeControl "180+1"]
[Date "2022.03.16"]
[WhiteClock "0:00:01"]
[BlackClock "0:00:03"]

1. d4 {[%clk 0:02:48]}  Nf6 {[%clk 0:02:59]} 2. c4 {[%clk 0:02:47]}  c5 {[%clk 0:03:00]} 3. d5 {[%clk 0:02:47]}  b5 {[%clk 0:03:00]} 4. cxb5 {[%clk 0:02:47]}  a6 {[%clk 0:03:01]} 5. b6 {[%clk 0:02:48]}  g6 {[%clk 0:02:59]} 6. Nc3 {[%clk 0:02:47]}  d6 {[%clk 0:02:58]} 7. e4 {[%clk 0:02:46]}  Bg7 {[%clk 0:02:58]} 8. Qb3 {[%clk 0:02:44]}  Bb7 {[%clk 0:02:49]} 9. a4 {[%clk 0:02:41]}  a5 {[%clk 0:02:46]} 10. Bb5+ {[%clk 0:02:41]}  Nbd7 {[%clk 0:02:45]} 11. Nf3 {[%clk 0:02:40]}  O-O {[%clk 0:02:38]} 12. O-O {[%clk 0:02:35]}  Qxb6 {[%clk 0:02:29]} 13. Nd2 {[%clk 0:02:34]}  Rfb8 {[%clk 0:02:24]} 14. Nc4 {[%clk 0:02:33]}  Qd8 {[%clk 0:02:24]} 15. f4 {[%clk 0:02:25]}  Nb6 {[%clk 0:02:12]} 16. h3 {[%clk 0:02:14]}  Nh5 {[%clk 0:01:45]} 17. g4 {[%clk 0:01:53]}  Bd4+ {[%clk 0:01:40]} 18. Kg2 {[%clk 0:01:52]}  Nf6 {[%clk 0:01:35]} 19. Nxb6 {[%clk 0:01:36]}  Qxb6 {[%clk 0:01:32]} 20. Qc2 {[%clk 0:01:34]}  Ba6 {[%clk 0:01:28]} 21. g5 {[%clk 0:01:29]}  Nh5 {[%clk 0:01:19]} 22. Bxa6 {[%clk 0:01:10]}  Qxa6 {[%clk 0:01:13]} 23. Nb5 {[%clk 0:01:10]}  Rxb5 {[%clk 0:01:00]} 24. axb5 {[%clk 0:01:09]}  Qxb5 {[%clk 0:01:01]} 25. Ra3 {[%clk 0:01:05]}  Rb8 {[%clk 0:00:49]} 26. Rff3 {[%clk 0:00:34]}  c4 {[%clk 0:00:36]} 27. b3 {[%clk 0:00:21]}  c3 {[%clk 0:00:28]} 28. Ra4 {[%clk 0:00:19]}  Bg7 {[%clk 0:00:17]} 29. e5 {[%clk 0:00:14]}  dxe5 {[%clk 0:00:12]} 30. Rxc3 {[%clk 0:00:14]}  Nxf4+ {[%clk 0:00:07]} 31. Bxf4 {[%clk 0:00:13]}  exf4 {[%clk 0:00:08]} 32. Rc8+ {[%clk 0:00:11]}  Bf8 {[%clk 0:00:08]} 33. Rxb8 {[%clk 0:00:11]}  Qxb8 {[%clk 0:00:09]} 34. Rxa5 {[%clk 0:00:08]}  Qe5 {[%clk 0:00:09]} 35. b4 {[%clk 0:00:05]}  Qxg5+ {[%clk 0:00:08]} 36. Kf1 {[%clk 0:00:05]}  f3 {[%clk 0:00:04]} 37. Qf2 {[%clk 0:00:01]}  Qc1+ {[%clk 0:00:03]} 0-1


[Site "https://www.chess.com"]